fUSD/lending_fUSD_20260402
["ID","MTS","AMOUNT","RATE_DAILY","PERIOD"]
[419302200,1775135444142,-1221.25,0.00013698,2]
[419302202,1775135444152,-500.0,0.00013698,2]
[419302204,1775135444161,-509.91183271,0.00013698,2]
[419302206,1775135444171,-500.0,0.00013698,2]
[419302208,1775135444181,-500.0,0.00013698,2]
[419302210,1775135444191,-500.0,0.00013698,2]
[419302213,1775135444201,-500.0,0.00013698,2]
[419302215,1775135444210,-500.0,0.00013698,2]
[419302216,1775135444220,-500.0,0.00013698,2]
[419302218,1775135444229,-500.0,0.00013698,2]
[419302220,1775135444239,-500.0,0.00013698,2]
[419302222,1775135444248,-500.0,0.00013698,2]
[419302224,1775135444258,-500.0,0.00013698,2]
[419302226,1775135444267,-500.0,0.00013698,2]
[419302228,1775135444277,-500.0,0.00013698,2]
[419302230,1775135444286,-500.0,0.00013698,2]
[419302232,1775135444295,-500.0,0.00013698,2]
[419302234,1775135444305,-500.0,0.00013698,2]
[419302236,1775135444314,-500.0,0.00013698,2]
[419302238,1775135444324,-159.96636092,0.00013698,2]
[419302240,1775135444333,-500.0,0.00013698,2]
[419302242,1775135444343,-500.0,0.00013698,2]
[419302244,1775135444352,-500.0,0.00013698,2]
[419302246,1775135444362,-500.0,0.00013698,2]
[419302249,1775135444371,-500.0,0.00013698,2]
[419302251,1775135444380,-500.0,0.00013698,2]
[419302253,1775135444390,-500.0,0.00013698,2]
[419302255,1775135444399,-500.0,0.00013698,2]
[419302257,1775135444408,-500.0,0.00013698,2]
[419302259,1775135444418,-500.0,0.00013698,2]
[419302261,1775135444427,-500.0,0.00013698,2]
[419302263,1775135444437,-500.0,0.00013698,2]
[419302265,1775135444446,-500.0,0.00013698,2]
[419302267,1775135444456,-500.0,0.00013698,2]
[419302268,1775135444466,-500.0,0.00013698,2]
[419302270,1775135444479,-500.0,0.00013698,2]
[419302273,1775135444489,-500.0,0.00013698,2]
[419302275,1775135444499,-500.0,0.00013698,2]
[419302277,1775135444508,-500.0,0.00013698,2]
[419302279,1775135444519,-500.0,0.00013698,2]
[419302281,1775135444528,-506.48015302,0.00013698,2]
[419302282,1775135444538,-500.0,0.00013698,2]
[419302284,1775135444548,-500.0,0.00013698,2]
[419302287,1775135444558,-500.0,0.00013698,2]
[419302289,1775135444567,-500.0,0.00013698,2]
[419302291,1775135444576,-500.0,0.00013698,2]
[419302292,1775135444586,-500.0,0.00013698,2]
[419302294,1775135444595,-500.0,0.00013698,2]
[419302296,1775135444604,-150.0,0.00013699,2]
[419302299,1775135444614,-150.0,0.00013699,2]
[419302300,1775135444625,-150.0,0.00013699,2]
[419302303,1775135444635,-200.0,0.00013699,2]
[419302305,1775135444645,-166.66,0.00013699,2]
[419302307,1775135444655,-151.0,0.00013699,2]
[419302308,1775135444665,-151.0,0.00013699,2]
[419302310,1775135444676,-287.523647,0.00013699,2]
[419302313,1775135444686,-287.523647,0.00013699,2]
[419302315,1775135444695,-287.523647,0.00013699,2]
[419302317,1775135444705,-287.523647,0.00013699,2]
[419302319,1775135444715,-287.523647,0.00013699,2]
[419302321,1775135444724,-287.523647,0.00013699,2]
[419302323,1775135444734,-287.523647,0.00013699,2]
[419302325,1775135444744,-287.523647,0.00013699,2]
[419302326,1775135444753,-287.523647,0.00013699,2]
[419302327,1775135444764,-287.523647,0.00013699,2]
[419302328,1775135444774,-287.523647,0.00013699,2]
[419302329,1775135444784,-287.523647,0.00013699,2]
[419302331,1775135444793,-287.523647,0.00013699,2]
[419302333,1775135444803,-287.523647,0.00013699,2]
[419302335,1775135444813,-287.523647,0.00013699,2]
[419302337,1775135444822,-287.523647,0.00013699,2]
[419302339,1775135444833,-287.523647,0.00013699,2]
[419302341,1775135444843,-287.523647,0.00013699,2]
[419302343,1775135444853,-287.523647,0.00013699,2]
[419302345,1775135444862,-287.523648,0.00013699,2]
[419302347,1775135444871,-500.0,0.00013699,2]
[419302349,1775135444881,-384.73655496,0.00013699,2]
[419302350,1775135444890,-500.0,0.00013699,2]
[419302351,1775135444899,-500.0,0.00013699,2]
[419302352,1775135444909,-500.0,0.00013699,2]
[419302353,1775135444918,-500.0,0.00013699,2]
[419302354,1775135444929,-500.0,0.00013699,2]
[419302355,1775135444939,-500.0,0.00013699,2]
[419302356,1775135444949,-500.0,0.00013699,2]
[419302358,1775135444958,-500.0,0.00013699,2]
[419302360,1775135444967,-500.0,0.00013699,2]
[419302362,1775135444977,-500.0,0.00013699,2]
[419302364,1775135444987,-500.0,0.00013699,2]
[419302366,1775135444996,-500.48771159,0.00013699,2]
[419302368,1775135445006,-500.0,0.00013699,2]
[419302370,1775135445016,-500.0,0.00013699,2]
[419302371,1775135445026,-500.0,0.00013699,2]
[419302372,1775135445036,-500.0,0.00013699,2]
[419302373,1775135445046,-500.0,0.00013699,2]
[419302374,1775135445056,-500.0,0.00013699,2]
[419302375,1775135445065,-500.0,0.00013699,2]
[419302376,1775135445078,-500.0,0.00013699,2]
[419302377,1775135445088,-490.51689563,0.00013699,2]
[419302378,1775135445097,-500.0,0.00013699,2]
[419302379,1775135445107,-500.0,0.00013699,2]
[419302380,1775135445117,-500.0,0.00013699,2]
[419302381,1775135445127,-500.0,0.00013699,2]
[419302382,1775135445137,-500.0,0.00013699,2]
[419302383,1775135445147,-312.60583326,0.00013699,2]
[419302384,1775135445158,-503.55252603,0.00013699,2]
[419302385,1775135445168,-342.90598018,0.00013699,2]
[419302386,1775135445178,-500.62845859,0.00013699,2]
[419302387,1775135445188,-500.0,0.00013699,2]
[419302388,1775135445198,-500.0,0.00013699,2]
[419302389,1775135445208,-500.0,0.00013699,2]
[419302390,1775135445218,-500.0,0.00013699,2]
[419302391,1775135445228,-500.0,0.00013699,2]
[419302392,1775135445238,-452.97866013,0.00013699,2]
[419302393,1775135445248,-500.0,0.00013699,2]
[419302394,1775135445258,-561.18350506,0.00013699,2]
[419302395,1775135445268,-500.0,0.00013699,2]
[419302396,1775135445279,-501.37276755,0.00013699,2]
[419302397,1775135445290,-166.46025281,0.00013699,2]
[419302398,1775135445301,-500.0,0.00013699,2]
[419302399,1775135445311,-259.62198553,0.00013699,2]
[419302400,1775135445322,-150.31858386,0.000137,2]
[419302401,1775135445332,-974.775758,0.00013726,2]
[419302402,1775135445343,-601.163208,0.00013726,2]
[419302403,1775135445354,-974.775758,0.00013726,2]
[419302404,1775135445363,-601.163208,0.00013726,2]
[419302405,1775135445373,-974.775758,0.00013726,2]
[419302406,1775135445382,-601.163208,0.00013726,2]
[419302407,1775135445393,-974.775758,0.00013726,2]
[419302408,1775135445404,-601.163208,0.00013726,2]
[419302409,1775135445413,-500.0,0.00013773,2]
[419302410,1775135445424,-165.49145903,0.00013773,2]
[419302411,1775135445435,-500.0,0.00013773,2]
[419302412,1775135445444,-590.83132733,0.00013773,2]
[419302413,1775135445454,-500.0,0.00013773,2]
[419302414,1775135445464,-337.66380378,0.00013773,2]
[419302415,1775135445474,-500.0,0.00013773,2]
[419302416,1775135445484,-500.0,0.00013773,2]
[419302417,1775135445494,-518.78086714,0.00013773,2]
[419302418,1775135445503,-500.0,0.00013773,2]
[419302419,1775135445513,-500.0,0.00013773,2]
[419302420,1775135445523,-500.0,0.00013773,2]
[419302421,1775135445533,-666.0,0.00013794,2]
[419302422,1775135445543,-666.0,0.00013794,2]
[419302423,1775135445552,-500.0,0.00013794,2]
[419302424,1775135445561,-500.0,0.00013794,2]
[419302425,1775135445571,-500.0,0.00013794,2]
[419302426,1775135445581,-500.0,0.00013794,2]
[419302427,1775135445591,-500.0,0.00013794,2]
[419302428,1775135445600,-1933.7827057,0.00013795,2]
[419302429,1775135445610,-30681.3889199,0.00013795,2]
[419302430,1775135445620,-151.0,0.00013795,2]
[419302431,1775135445631,-151.0,0.00013795,2]
[419302432,1775135445641,-151.0,0.00013795,2]
[419302433,1775135445652,-151.0,0.00013795,2]
[419302434,1775135445661,-151.0,0.00013795,2]
[419302435,1775135445671,-151.250482,0.00013795,2]
[419302436,1775135445682,-974.775758,0.00013795,2]
[419302437,1775135445692,-601.163208,0.00013795,2]
[419302438,1775135445702,-974.775758,0.00013795,2]
[419302439,1775135445712,-601.163208,0.00013795,2]
[419302440,1775135445722,-974.775758,0.00013795,2]
[419302441,1775135445731,-601.163208,0.00013795,2]
[419302442,1775135445741,-974.775753,0.00013795,2]
[419302443,1775135445752,-601.163215,0.00013795,2]
[419302444,1775135445762,-500.0,0.00013798,2]
[419302445,1775135445771,-1221.25,0.00013798,2]
[419302446,1775135445781,-200.0,0.000138,2]
[419302447,1775135445790,-151.0,0.000138,2]
[419302448,1775135445800,-151.0,0.000138,2]
[419302449,1775135445810,-1000.0,0.000138,2]
[419302450,1775135445819,-1000.0,0.000138,2]
[419302451,1775135445829,-882.60643401,0.000138,2]
[419302452,1775135445839,-288.09023334,0.000138,2]
[419302453,1775135445849,-166.66,0.00013836,2]
[419302454,1775135445859,-2000.0,0.0001386,2]
[419302455,1775135445869,-2000.0,0.0001386,2]
[419302456,1775135445878,-2000.0,0.0001387,2]
[419302457,1775135445888,-500.44803489,0.00013873,2]
[419302458,1775135445898,-2000.0,0.0001388,2]
[419302459,1775135445907,-2000.0,0.0001388,2]
[419302460,1775135445917,-2000.0,0.0001389,2]
[419302461,1775135445926,-300.7689392,0.000139,2]
[419302462,1775135445936,-944.27,0.000139,2]
[419302463,1775135445946,-7700.0,0.000139,5]
[419302464,1775135445956,-200.97,0.00013905,2]
[419302465,1775135445965,-1599.0,0.00013905,2]
[419302466,1775135445975,-151.08,0.00013905,2]
[419302467,1775135445984,-2032.1,0.00013905,2]
[419302468,1775135445995,-500.0,0.00013905,2]
[419302469,1775135446004,-273.9,0.00013905,2]
[419302470,1775135446014,-2726.14,0.00013905,2]
[419302471,1775135446023,-1500.0,0.00013905,2]
[419302472,1775135446032,-350.0,0.00013921,2]
[419302473,1775135446042,-200.0,0.00013938,2]
[419302474,1775135446052,-150.0,0.00013973,2]
[419302475,1775135446062,-150.0,0.00013973,2]
[419302476,1775135446073,-166.66,0.00013973,2]
[419302477,1775135446083,-425.78705568,0.00013978,2]
[419302478,1775135446094,-9601.90631203,0.00014006,2]
[419302479,1775135446104,-151.0,0.00014006,2]
[419302480,1775135446113,-151.0,0.00014006,2]
[419302481,1775135446123,-4527.91,0.00014016,2]
[419302482,1775135446133,-2000.0,0.0001403,2]
[419302483,1775135446143,-350.0,0.00014042,2]
[419302484,1775135446153,-166.66,0.00014058,2]
[419302485,1775135446162,-1600.0,0.00014062,2]
[419302486,1775135446253,-350.0,0.00014067,2]
[419302487,1775135446263,-433.0,0.00014068,2]
[419302489,1775135446272,-200.0,0.00014077,2]
[419302491,1775135446282,-166.66,0.0001411,2]
[419302493,1775135446291,-350.0,0.00014133,2]
[419302495,1775135446300,-2000.0,0.00014144,2]
[419302497,1775135446310,-2000.0,0.00014166,2]
[419302498,1775135446319,-327.38172344,0.00014196,2]
[419302499,1775135446330,-311.11,0.00014213,2]
[419302500,1775135446339,-200.0,0.00014218,2]
[419302501,1775135446348,-350.0,0.00014231,2]
[419302502,1775135446358,-166.66,0.00014247,2]
[419302503,1775135446367,-457.55811297,0.00014247,2]
[419302504,1775135446377,-150.0,0.00014247,2]
[419302505,1775135446387,-501.1834914,0.00014247,2]
[419302506,1775135446396,-500.0,0.00014247,2]
[419302507,1775135446405,-500.0,0.00014247,2]
[419302508,1775135446415,-501.4995107,0.00014247,2]
[419302509,1775135446424,-1001.74712556,0.00014247,2]
[419302510,1775135446434,-1003.93751235,0.00014247,2]
[419302511,1775135446443,-306.99886496,0.00014247,2]
[419302512,1775135446452,-286.1065946,0.00014247,2]
[419302513,1775135446462,-356.03578514,0.00014247,2]
[419302514,1775135446471,-500.0,0.00014247,2]
[419302515,1775135446481,-555.98551723,0.00014247,2]
[419302516,1775135446491,-500.96174367,0.00014247,2]
[419302517,1775135446501,-1000.0,0.00014247,2]
[419302518,1775135446510,-500.84806746,0.00014247,2]
[419302519,1775135446520,-1000.0,0.00014247,2]
[419302520,1775135446530,-392.10429392,0.00014247,2]
[419302521,1775135446540,-1082.86950942,0.00014247,2]
[419302522,1775135446549,-502.01968107,0.00014247,2]
[419302523,1775135446560,-1000.0,0.00014247,2]
[419302524,1775135446570,-1000.0,0.00014247,2]
[419302525,1775135446579,-684.40015724,0.00014247,2]
[419302526,1775135446590,-502.46451115,0.00014247,2]
[419302527,1775135446599,-1000.0,0.00014247,2]
[419302528,1775135446608,-1000.0,0.00014247,2]
[419302529,1775135446619,-500.0,0.00014247,2]
[419302530,1775135446629,-587.0,0.00014252,2]
[419302531,1775135446639,-500.0,0.00014285,2]
[419302532,1775135446648,-500.0,0.00014285,2]
[419302533,1775135446658,-500.0,0.00014285,2]
[419302534,1775135446668,-500.0,0.00014285,2]
[419302535,1775135446678,-500.0,0.00014285,2]
[419302536,1775135446687,-238.9247,0.000143,12]
[419302537,1775135446697,-350.0,0.00014301,2]
[419302538,1775135446706,-2351.0,0.00014305,2]
[419302539,1775135446715,-501.30239513,0.00014321,2]
[419302540,1775135446724,-1000.0,0.00014321,2]
[419302541,1775135446734,-1000.0,0.00014321,2]
[419302542,1775135446743,-500.0,0.00014321,2]
[419302543,1775135446752,-502.59758452,0.00014321,2]
[419302544,1775135446763,-350.0,0.00014351,2]
[419302545,1775135446772,-226.51759958,0.00014369,2]
[419302546,1775135446782,-231.34445432,0.00014369,2]
[419302547,1775135446791,-166.66,0.00014384,2]
[419302548,1775135446801,-289.53,0.00014493,2]
[419302549,1775135446812,-350.0,0.00014519,2]
[419302550,1775135446822,-228.58372377,0.00014519,2]
[419302551,1775135446832,-535.14083968,0.00014562,2]
[419302552,1775135446841,-350.0,0.00014574,2]
[419302553,1775135446850,-2726.14,0.000146,2]
[419302554,1775135446860,-150.0,0.00014606,2]
[419302555,1775135446869,-163.54,0.00014618,2]
[419302556,1775135446879,-590.23408797,0.00014671,2]
[419302557,1775135446888,-504.34724751,0.00014692,2]
[419302558,1775135446897,-1637.08253403,0.00014714,2]
[419302559,1775135446907,-629.66942551,0.00014795,2]
[419302560,1775135446916,-1503.04138262,0.00014795,2]
[419302561,1775135446926,-1500.0,0.00014795,2]
[419302562,1775135446939,-1500.0,0.00014795,2]
[419302563,1775135446949,-1500.0,0.00014795,2]
[419302564,1775135446959,-500.0,0.00014895,2]
[419302565,1775135446968,-578.20924308,0.00014896,2]
[419302566,1775135446978,-500.0,0.00014896,2]
[419302567,1775135446988,-200.0,0.00014896,2]
[419302568,1775135446998,-500.0,0.00014896,2]
[419302569,1775135447010,-209.40437684,0.00014896,2]
[419302570,1775135447020,-500.0,0.00014896,2]
[419302571,1775135447029,-500.0,0.00014896,2]
[419302572,1775135447040,-9552.16786547,0.00014896,2]
[419302573,1775135447050,-500.0,0.00014896,2]
[419302574,1775135447061,-500.0,0.00014896,2]
[419302575,1775135447071,-500.0,0.00014896,2]
[419302576,1775135447080,-500.0,0.00014896,2]
[419302577,1775135447090,-500.0,0.00014896,2]
[419302578,1775135447099,-500.0,0.00014896,2]
[419302579,1775135447110,-500.0,0.00014896,2]
[419302580,1775135447119,-500.0,0.00014896,2]
[419302581,1775135447129,-500.0,0.00014896,2]
[419302582,1775135447138,-500.0,0.00014896,2]
[419302583,1775135447149,-500.0,0.00014896,2]
[419302584,1775135447159,-500.0,0.00014896,2]
[419302585,1775135447168,-158.56026764,0.00014896,2]
[419302586,1775135447178,-500.0,0.00014896,2]
[419302587,1775135447188,-500.0,0.00014896,2]
[419302588,1775135447198,-500.0,0.00014896,2]
[419302589,1775135447207,-500.0,0.00014896,2]
[419302590,1775135447216,-500.0,0.00014896,2]
[419302591,1775135447226,-500.0,0.00014896,2]
[419302592,1775135447236,-500.0,0.00014896,2]
[419302593,1775135447245,-1428.38747117,0.00014896,2]
[419302594,1775135447255,-151.0,0.00014896,2]
[419302595,1775135447265,-500.0,0.00014896,2]
[419302596,1775135447275,-500.0,0.00014896,2]
[419302597,1775135447286,-174.61919141,0.00014896,2]
[419302598,1775135447297,-500.0,0.00014896,2]
[419302599,1775135447306,-500.0,0.00014896,2]
[419302600,1775135447315,-500.0,0.00014896,2]
[419302601,1775135447325,-250.0,0.00014896,2]
[419302602,1775135447334,-500.0,0.00014896,2]
[419302603,1775135447343,-250.0,0.00014896,2]
[419302604,1775135447352,-500.0,0.00014896,2]
[419302605,1775135447361,-250.0,0.00014896,2]
[419302606,1775135447371,-500.0,0.00014896,2]
[419302607,1775135447380,-250.0,0.00014896,2]
[419302608,1775135447389,-500.0,0.00014896,2]
[419302609,1775135447398,-250.0,0.00014896,2]
[419302610,1775135447407,-500.0,0.00014896,2]
[419302611,1775135447416,-250.0,0.00014896,2]
[419302612,1775135447426,-500.0,0.00014896,2]
[419302613,1775135447438,-802.22446877,0.00014896,2]
[419302614,1775135447447,-250.0,0.00014896,2]
[419302615,1775135447456,-250.0,0.00014896,2]
[419302616,1775135447465,-250.0,0.00014896,2]
[419302617,1775135447474,-250.0,0.00014896,2]
[419302618,1775135447485,-250.0,0.00014896,2]
[419302619,1775135447494,-279.9045709,0.00014896,2]
[419302620,1775135447505,-156.86681255,0.00014896,2]
[419302621,1775135447515,-743.50770149,0.00014896,2]
[419302622,1775135447524,-170.0,0.00014896,2]
[419302623,1775135447534,-170.0,0.00014896,2]
[419302624,1775135447544,-170.0,0.00014896,2]
[419302625,1775135447553,-170.0,0.00014896,2]
[419302626,1775135447562,-170.0,0.00014896,2]
[419302627,1775135447571,-170.0,0.00014896,2]
[419302628,1775135447581,-170.0,0.00014896,2]
[419302629,1775135447590,-170.0,0.00014896,2]
[419302630,1775135447606,-170.0,0.00014896,2]
[419302631,1775135447620,-170.0,0.00014896,2]
[419302632,1775135447631,-170.0,0.00014896,2]
[419302633,1775135447640,-151.08,0.00014898,2]
[419302634,1775135447650,-350.0,0.00014904,2]
[419302635,1775135447659,-500.0,0.00014951,2]
[419302636,1775135447670,-9905.5980765,0.00014951,2]
[419302637,1775135447680,-151.0,0.00014951,2]
[419302638,1775135447690,-3026.0,0.00014967,5]
[419302639,1775135447700,-3026.0,0.00014967,5]
[419302640,1775135447710,-200.0,0.00015,2]
[419302641,1775135447721,-250.0,0.00015,3]
[419302642,1775135447730,-1000.31955738,0.00015,2]
[419302643,1775135447739,-500.0,0.00015006,2]
[419302644,1775135447749,-10272.10520533,0.00015006,2]
[419302645,1775135447759,-151.0,0.00015006,2]
[419302646,1775135447768,-289.53,0.00015013,2]
[419302647,1775135447777,-197.11348967,0.00015034,2]
[419302648,1775135447787,-224.82528766,0.00015034,2]
[419302649,1775135447796,-212.89352784,0.00015035,2]
[419302650,1775135447805,-500.0,0.00015061,2]
[419302651,1775135447815,-10652.17309792,0.00015061,2]
[419302652,1775135447824,-151.0,0.00015061,2]
[419302653,1775135447834,-1600.0,0.00015067,2]
[419302654,1775135447843,-1600.0,0.00015067,2]
[419302655,1775135447852,-1600.0,0.00015067,2]
[419302656,1775135447861,-1600.0,0.00015067,2]
[419302657,1775135447871,-1600.0,0.00015067,2]
[419302658,1775135447880,-1600.0,0.00015067,2]
[419302659,1775135447889,-1600.0,0.00015067,2]
[419302660,1775135447899,-1600.0,0.00015067,2]
[419302661,1775135447908,-1600.0,0.00015067,2]
[419302662,1775135447917,-1575.0,0.00015067,2]
[419302663,1775135447927,-1106.257721,0.00015068,2]
[419302664,1775135447937,-1106.257721,0.00015068,2]
[419302665,1775135447947,-1106.257721,0.00015068,2]
[419302666,1775135447956,-1106.257721,0.00015068,2]
[419302667,1775135447965,-1106.257721,0.00015068,2]
[419302668,1775135447975,-1106.257721,0.00015068,2]
[419302669,1775135447984,-1106.257721,0.00015068,2]
[419302670,1775135447993,-1106.257721,0.00015068,2]
[419302671,1775135448005,-1106.257721,0.00015068,2]
[419302672,1775135448014,-1106.257721,0.00015068,2]
[419302673,1775135448024,-1106.257721,0.00015068,2]
[419302674,1775135448035,-1106.257721,0.00015068,2]
[419302675,1775135448045,-1106.257721,0.00015068,2]
[419302676,1775135448056,-1106.257721,0.00015068,2]
[419302677,1775135448067,-1106.257721,0.00015068,2]
[419302678,1775135448078,-1106.257721,0.00015068,2]
[419302679,1775135448088,-1106.257721,0.00015068,2]
[419302680,1775135448098,-1106.257721,0.00015068,2]
[419302681,1775135448108,-1106.257721,0.00015068,2]
[419302682,1775135448123,-1106.257727,0.00015068,2]
[419302683,1775135448135,-800.0,0.00015068,2]
[419302684,1775135448145,-200.0,0.000151,2]
[419302685,1775135448158,-500.0,0.00015116,2]
[419302686,1775135448168,-11046.30350255,0.00015116,2]
[419302687,1775135448178,-151.0,0.00015116,2]
[419302688,1775135448188,-500.0,0.00015171,2]
[419302689,1775135448198,-11455.01673214,0.00015171,2]
[419302690,1775135448209,-151.0,0.00015171,2]
[419302691,1775135448220,-6520.35,0.00015205,2]
[419302692,1775135448231,-166.66,0.00015218,2]
[419302693,1775135448242,-500.0,0.00015226,2]
[419302694,1775135448252,-11878.85235123,0.00015226,2]
[419302695,1775135448263,-151.0,0.00015226,2]
[419302696,1775135448274,-200.0,0.00015251,2]
[419302697,1775135448284,-500.0,0.00015281,2]
[419302698,1775135448293,-9890.69101055,0.00015281,2]
[419302699,1775135448303,-151.0,0.00015281,2]
[419302700,1775135448314,-2726.14,0.00015296,2]
[419302701,1775135448324,-700.13141753,0.00015313,2]
[419302702,1775135448334,-500.0,0.00015313,2]
[419302703,1775135448345,-500.0,0.00015313,2]
[419302704,1775135448356,-401.55023854,0.00015313,2]
[419302705,1775135448366,-500.0,0.00015313,2]
[419302706,1775135448376,-177.64891112,0.0001532,2]
[419302707,1775135448386,-500.0,0.00015322,2]
[419302708,1775135448396,-64726.2411056,0.00015323,2]
[419302709,1775135448406,-500.0,0.00015336,2]
[419302710,1775135448416,-151.0,0.00015336,2]
[419302711,1775135448425,-177.0,0.00015341,3]
[419302712,1775135448435,-2000.0,0.00015342,2]
[419302713,1775135448445,-1004.16690782,0.00015342,2]
[419302714,1775135448455,-2000.0,0.00015342,2]
[419302715,1775135448466,-224.0,0.00015357,2]
[419302716,1775135448476,-264.60682017,0.0001536,2]
[419302717,1775135448487,-500.0,0.00015391,2]
[419302718,1775135448499,-151.0,0.00015391,2]
[419302719,1775135448509,-200.0,0.00015404,2]
[419302720,1775135448520,-200.0,0.00015444,2]
[419302721,1775135448530,-344.69331007,0.00015444,2]
[419302722,1775135448539,-1481.23780761,0.00015444,2]
[419302723,1775135448549,-181.08010149,0.00015444,2]
[419302724,1775135448559,-290.26104003,0.00015444,2]
[419302725,1775135448569,-771.01748645,0.00015444,2]
[419302726,1775135448579,-500.0,0.00015446,2]
[419302727,1775135448589,-151.0,0.00015446,2]
[419302728,1775135448599,-385.44,0.00015456,2]
[419302729,1775135448609,-1571.0,0.000155,2]
[419302730,1775135448624,-2000.0,0.000155,2]
[419302731,1775135448634,-2795.97,0.00015507,2]
[419302732,1775135448645,-903.14,0.00015526,2]
[419302733,1775135448655,-200.0,0.00015558,2]
[419302734,1775135448665,-6845.9432232,0.0001556,2]
[419302735,1775135448674,-160.85,0.00015588,2]
[419302736,1775135448684,-301.5408,0.000156,17]
[419302737,1775135448694,-2000.0,0.000156,2]
[419302738,1775135448704,-160.0,0.00015609,2]
[419302739,1775135448714,-390.00437277,0.00015631,2]
[419302740,1775135448724,-160.85,0.00015644,2]
[419302741,1775135448733,-823.0,0.00015648,2]
[419302742,1775135448744,-150.0,0.00015667,3]
[419302743,1775135448754,-160.85,0.00015699,2]
[419302744,1775135448764,-2000.0,0.000157,2]
[419302745,1775135448774,-14442.3765437,0.00015711,2]
[419302746,1775135448785,-1571.0,0.0001572,2]
[419302747,1775135448794,-2686.0,0.00015735,2]
[419302748,1775135448804,-2000.0,0.00015784,2]
[419302749,1775135448814,-10300.0,0.000158,5]
[419302750,1775135448824,-2000.0,0.000158,2]
[419302751,1775135448834,-2809.0,0.00015802,2]
[419302752,1775135448844,-1600.0,0.0001582,2]
[419302753,1775135448853,-384.78453938,0.00015847,2]
[419302754,1775135448864,-500.0,0.00015889,2]
[419302755,1775135448874,-505.82795553,0.00015889,2]
[419302756,1775135448884,-500.0,0.00015889,2]
[419302757,1775135448894,-500.0,0.0001589,2]
[419302758,1775135448905,-519.17533645,0.0001589,2]
[419302759,1775135448915,-2000.0,0.0001589,2]
[419302760,1775135448926,-2500.0,0.0001589,2]
[419302761,1775135448936,-1304.37006543,0.0001589,2]
[419302762,1775135448946,-151.08,0.00015892,2]
[419302763,1775135448958,-2795.97,0.00015895,2]
[419302764,1775135448969,-12800.0,0.000159,5]
[419302765,1775135448980,-453.90515533,0.000159,2]
[419302766,1775135448990,-2000.0,0.000159,2]
[419302767,1775135449002,-1571.0,0.00015921,2]
[419302768,1775135449013,-1527.5364077,0.00015954,2]
[419302769,1775135449024,-5017.6078664,0.0001596,2]
[419302770,1775135449034,-1000.0,0.0001597,2]
[419302771,1775135449044,-1854.65118905,0.0001597,2]
[419302772,1775135449054,-230.52565714,0.0001599,2]
[419302773,1775135449064,-2726.14,0.00015991,2]
[419302774,1775135449074,-200.0,0.00015992,2]
[419302775,1775135449085,-1536.04360649,0.00015992,2]
[419302776,1775135449094,-187.78006525,0.00015992,2]
[419302777,1775135449105,-434.17011299,0.00015992,2]
[419302778,1775135449117,-799.54513345,0.00015992,2]
[419302779,1775135449127,-500.0,0.00015999,2]
[419302780,1775135449141,-500.0,0.00015999,2]
[419302781,1775135449152,-500.0,0.00015999,2]
[419302782,1775135449162,-500.0,0.00015999,2]
[419302783,1775135449174,-500.0,0.00015999,2]
[419302784,1775135449184,-500.0,0.00015999,2]